Cogmind - Beta 10.2 @@@ ROGUE MODE // 2021.12.01 @ 09:16:01 Player: TheSlyFawkes Result: Self-destructed Performance ------------- Evolutions (3) 1500 Regions Visited (6) 1200 Robots Destroyed (36) 180 Value Destroyed (1037) 1037 Prototype IDs (5) 100 Alien Tech Used (0) 0 Bonus (380) 380 TOTAL SCORE: 4397 Bonus ------- Follower Combat Kills 109 Aligned with FarCom 300 Friendly Fire -29 Cogmind --------- Core Integrity 700/700 Matter 280/300 Energy 160/160 System Corruption 0% Temperature Cool (-100) Movement Treading (153) Location -7/Factory Parts ------- > --- POWER (1) -------- Light Nuclear Core > --- PROPULSION (3) --- Armored Treads Advanced Treads Advanced Treads > --- UTILITY (4) ------ Cryofiber Web Improved Signal Interpreter 0b10 Alert Chip Particle Charger > --- WEAPON (5) ------- AWS/Thermal Heavy Particle Cannon Heavy Particle Cannon Gauss Rifle > --- INVENTORY (4) ---- (None) Peak State ------------ > --- POWER ------------ Light Nuclear Core > --- PROPULSION ------- Armored Treads Advanced Treads Advanced Treads > --- UTILITY ---------- Cryofiber Web Improved Signal Interpreter 0b10 Alert Chip Particle Charger > --- WEAPON ----------- AWS/Thermal Heavy Particle Cannon Heavy Particle Cannon Gauss Rifle > --- INVENTORY -------- (None) [Rating: 52] Favorites ----------- Power Light Nuclear Core Engine Ion Engine Power Core Light Nuclear Core Propulsion Advanced Treads Treads Advanced Treads Leg Carbon-fiber Leg Wheel Wheel Utility 0b10 Alert Chip Device Cryofiber Web Storage Small Storage Unit Processor 0b10 Alert Chip Weapon Heavy Particle Cannon Energy Gun AWS/Thermal Energy Cannon Heavy Particle Cannon Ballistic Gun Light Assault Rifle Slashing Weapon Scythe Build | -11 -10 -10 -10 -9 -8 -7 ------- Run | Scr Mat Min Exi Min Mat Fac Slots Evolved 6 | . . . . . 4 2 Power . | . . . . . . . Propulsion 1 | . . . . . . 1 Utility 2 | . . . . . 1 1 Weapon 3 | . . . . . 3 . Parts Attached 47 | 5 4 1 5 5 25 2 Power 4 | 1 1 . 1 . 1 . Engine 2 | 1 1 . . . . . Core 2 | . . . 1 . 1 . Reactor . | . . . . . . . Propulsion 13 | 2 . . . 2 8 1 Treads 7 | 2 . . . . 4 1 Leg 4 | . . . . . 4 . Wheel 2 | . . . . 2 . . Hover . | . . . . . . . Flight . | . . . . . . . Utility 10 | . 1 . 2 1 5 1 Device 4 | . . . . 1 3 . Storage 1 | . 1 . . . . . Processor 5 | . . . 2 . 2 1 Hackware . | . . . . . . . Protection . | . . . . . . . Artifact . | . . . . . . . Weapon 20 | 2 2 1 2 2 11 . Energy Gun 7 | 1 1 . 1 2 2 . Energy Cannon 8 | . . . 1 . 7 . Ballistic Gun 4 | 1 1 1 . . 1 . Ballistic Cannon . | . . . . . . . Launcher . | . . . . . . . Special Weapon . | . . . . . . . Impact Weapon . | . . . . . . . Slashing Weapon 1 | . . . . . 1 . Piercing Weapon . | . . . . . . . Special Melee Weapon . | . . . . . . . Unidentified Prototypes 5 | . . . 3 1 1 . Parts Lost 6 | . 4 2 . . . . Power 1 | . 1 . . . . . Propulsion 2 | . 1 1 . . . . Utility . | . . . . . . . Weapon 3 | . 2 1 . . . . Highest Loss Streak 2 | . 2 2 . . . . Average Slot Usage (%) 76 | . 77 64 56 71 89 92 Engine 5 | . 14 14 8 . . . Core 6 | . . . 5 14 9 7 Treads 9 | . 22 8 . . 10 23 Leg 2 | . . . . . 6 . Wheel 2 | . . . . 14 . . Device 5 | . . . . . 13 15 Storage 4 | . 12 14 8 . . . Processor 11 | . . . 11 27 13 15 Energy Gun 9 | . 10 8 5 14 9 7 Energy Cannon 10 | . . . . . 24 15 Ballistic Gun 8 | . 16 19 16 . . 7 Naked Turns . | . . . . . . . Heaviest Build 45 | 8 12 12 13 27 45 33 Greatest Support 64 | 40 40 20 3 20 44 64 Greatest Overweight (x) 4 | 2 . 3 4 4 2 . Average Overweight (x) . | . . 1 3 1 . . Largest Inventory Capacity 6 | 4 6 6 6 4 4 4 Average Capacity 4 | 4 5 6 5 4 4 4 Most Carried 5 | 4 4 4 5 3 4 1 Average Carried 2 | 3 2 3 2 1 2 . Final Capacity 6 | 4 6 6 4 4 4 4 Final Carried 4 | 4 3 3 1 1 2 . Class Distribution -------------------- 57% | Mutant 24% | Skirmisher 10% | Scavenger-Skirmisher 4% | Scavenger-Assassin Dominant Class ---------------- Mutant | -10/Materials Mutant | -10/Mines Mutant | -10/Exiles Mutant | -9/Mines Skirmisher | -8/Materials Gunner | -7/Factory Resources | -11 -10 -10 -10 -9 -8 -7 ----------- Run | Scr Mat Min Exi Min Mat Fac Matter Collected 820 | 250 179 31 . 39 321 . Remotely . | . . . . . . . Salvage Created 1262 | . 452 29 . 39 742 . Parts 85 | . 37 . . 6 42 . Haulers Intercepted . | . . . . . . . Recyclers Shooed 2 | . . . . 2 . . Parts Field Recycled . | . . . . . . . Retrieved Matter . | . . . . . . . Parts Self-Destructed . | . . . . . . . Prevented . | . . . . . . . Kills | -11 -10 -10 -10 -9 -8 -7 ------- Run | Scr Mat Min Exi Min Mat Fac Combat Hostiles Destroyed 31 | . 12 3 . . 16 . Guns 25 | . 12 3 . . 10 . Cannons 6 | . . . . . 6 . Classes Destroyed 9 | . 3 1 . 2 3 . Builder 2 | . . . . 1 1 . Tunneler 1 | . . . . 1 . . Operator 1 | . 1 . . . . . Watcher 4 | . . . . . 4 . Swarmer 9 | . 3 . . . 6 . Grunt 15 | . 9 . . . 6 . Sentry 3 | . . . . . 3 . Hunter 1 | . . . . . 1 . Assembled 3 | . . 3 . . . . Best Kill Streak 4 | . 2 1 . 1 4 . Combat Bots Only 3 | . 2 1 . . 3 . Max Kills in Single Turn 2 | . 2 1 . 1 2 . Gunslinging 1 | . 1 . . . . . Exploded . | . . . . . . . Melee . | . . . . . . . Uniques/NPCs Destroyed . | . . . . . . . Combat | -11 -10 -10 -10 -9 -8 -7 -------- Run | Scr Mat Min Exi Min Mat Fac Damage Taken 1368 | . 604 112 . . 652 . Core 170 | . 84 . . . 86 . Absorbed by Shields . | . . . . . . . Core Remaining (%) 83 | 100 . . . 66 84 . Volleys Fired 87 | . 54 14 . 7 12 . Largest 3 | . 2 2 . 1 3 . Hottest 225 | . 60 60 . 40 225 . Shots Fired 235 | . 106 24 . 7 98 . Gun 201 | . 106 24 . 7 64 . Cannon 34 | . . . . . 34 . Launcher . | . . . . . . . Special . | . . . . . . . Kinetic 101 | . 82 17 . . 2 . Thermal 134 | . 24 7 . 7 96 . Explosive . | . . . . . . . Electromagnetic . | . . . . . . . Robot Hit Streak 23 | . 23 5 . 6 18 . Robot Miss Streak 3 | . 3 2 . 2 3 . Penetration Max . | . . . . . . . Secondary Targets 3 | . 3 . . . . . Max Gunslinging Chain 1 | . 1 . . . . . Autonomous 62 | . . . . . 62 . Shots Hit Robots 162 | . 78 16 . 5 63 . Core Hits 57 | . 24 8 . 3 22 . Critical Hits 3 | . 2 . . . 1 . Critical Kills 1 | . . . . . 1 . Critical Parts Destroyed 2 | . 2 . . . . . Melee Attacks 10 | . . . . . 10 . Impact . | . . . . . . . Slashing 10 | . . . . . 10 . Piercing . | . . . . . . . Sneak Attacks . | . . . . . . . Combat Hostiles . | . . . . . . . Follow-up Attacks . | . . . . . . . Damage Inflicted 2870 | . 777 144 . 56 1893 . Guns 2346 | . 777 144 . 56 1369 . Cannons 524 | . . . . . 524 . Explosions . | . . . . . . . Melee . | . . . . . . . Ramming . | . . . . . . . Kinetic 690 | . 588 102 . . . . Thermal 2180 | . 189 42 . 56 1893 . Explosive . | . . . . . . . Electromagnetic . | . . . . . . . Impact . | . . . . . . . Slashing . | . . . . . . . Piercing . | . . . . . . . Highest Corruption 1 | . . . . . 1 . Average Corruption 1 | . . . . . 1 . Corruption Purged . | . . . . . . . Effects 1 | . . . . . 1 . Data Loss (minor) 1 | . . . . . 1 . Overload Shots . | . . . . . . . Overflow Damage . | . . . . . . . Projectiles . | . . . . . . . Explosions . | . . . . . . . Melee . | . . . . . . . Knockbacks . | . . . . . . . Impact . | . . . . . . . Kinetic . | . . . . . . . Secondary . | . . . . . . . Self-Inflicted Damage . | . . . . . . . Shots . | . . . . . . . Rammed . | . . . . . . . Targets Rammed . | . . . . . . . Kicked . | . . . . . . . Crushed . | . . . . . . . Highest Temperature 331 | . 76 40 . 12 331 . Average Temperature 58 | . 22 22 . 4 105 . Received Heat Transfer 419 | . 258 80 . . 81 . Effects 1 | . . . . . 1 . Interference 1 | . . . . . 1 . Siege Activations . | . . . . . . . Robots Corrupted . | . . . . . . . Combat Hostiles . | . . . . . . . Parts Fried . | . . . . . . . Impact Corruptions . | . . . . . . . Robots Melted . | . . . . . . . Combat Hostiles . | . . . . . . . Parts Melted 7 | . 1 . . . 6 . Heat Transferred 3018 | . 425 100 . 125 2368 . Parts Sabotaged . | . . . . . . . Parts Stolen . | . . . . . . . Parts Stripped . | . . . . . . . Power Chain Reactions . | . . . . . . . Missiles Intercepted . | . . . . . . . Alert | -11 -10 -10 -10 -9 -8 -7 ------- Run | Scr Mat Min Exi Min Mat Fac Peak Influence 230 | . 159 54 . 10 230 39 Initial 54 | . . 54 . . . 39 Average 63 | . 73 45 . 2 84 39 Maximum Alert Level 1 | . . . . . 1 . Low Security (%) 98 | 100 100 100 . 100 96 100 Level 1 1 | . . . . . 3 . Level 2 . | . . . . . . . Level 3 . | . . . . . . . Level 4 . | . . . . . . . Level 5 . | . . . . . . . High Security . | . . . . . . . Max Security . | . . . . . . . Squads Dispatched 4 | . 3 . . . 1 . Investigation 1 | . . . . . 1 . Extermination . | . . . . . . . Reinforcement 3 | . 3 . . . . . Assault . | . . . . . . . Garrison . | . . . . . . . Intercept . | . . . . . . . Construction Impeded . | . . . . . . . Haulers Reinforced . | . . . . . . . Stealth | -11 -10 -10 -10 -9 -8 -7 --------- Run | Scr Mat Min Exi Min Mat Fac Distress Signals 5 | . 2 . . . 3 . Communications Jammed . | . . . . . . . Distress Signals . | . . . . . . . Times Spotted 51 | . 22 4 . . 25 . Peak Tracking Total 5 | . 5 2 . . 5 . Tactical Retreats 2 | . . 1 . . 1 . Traps | -11 -10 -10 -10 -9 -8 -7 ------- Run | Scr Mat Min Exi Min Mat Fac Traps Triggered 3 | . . . . . 3 . Indirectly . | . . . . . . . Trap Hack Attempts . | . . . . . . . Triggered . | . . . . . . . Disarmed . | . . . . . . . Reprogrammed . | . . . . . . . Reused . | . . . . . . . Traps Extracted . | . . . . . . . Installed . | . . . . . . . Triggered . | . . . . . . . Machines | -11 -10 -10 -10 -9 -8 -7 ---------- Run | Scr Mat Min Exi Min Mat Fac Machines Disabled 1 | . . . . . 1 . Max in Single Turn 1 | . . . . . 1 . Machines Sabotaged . | . . . . . . . Garrisons Compromised . | . . . . . . . Overloaded Fab Kills . | . . . . . . . Fab Network Shutdowns . | . . . . . . . Hacking | -11 -10 -10 -10 -9 -8 -7 --------- Run | Scr Mat Min Exi Min Mat Fac Machines Accessed 11 | . 1 . . 1 9 . Terminals 8 | . 1 . . . 7 . Fabricators . | . . . . . . . Repair Stations 1 | . . . . . 1 . Recycling Units . | . . . . . . . Scanalyzers 1 | . . . . . 1 . Garrison Access . | . . . . . . . Total Hacks 27 | . 2 . . 1 24 . Successful 15 | . 2 . . 1 12 . Failed 12 | . . . . . 12 . Catastrophic 2 | . . . . . 2 . Database Lockouts . | . . . . . . . Manual 9 | . 1 . 1 . 7 . Terminals 21 | . 2 . . . 19 . Fabricators . | . . . . . . . Repair Stations 2 | . . . . . 2 . Recycling Units . | . . . . . . . Scanalyzers 3 | . . . . . 3 . Garrison Access . | . . . . . . . Terminal Hacks 10 | . 2 . . 1 7 . Open Door 1 | . . . . 1 . . Emergency Access Points 1 | . . . . . 1 . Terminal Index 2 | . 1 . . . 1 . Unreport Threat 1 | . . . . . 1 . Locate Traps 3 | . 1 . . . 2 . Zone Layout 2 | . . . . . 2 . Fabricator Hacks . | . . . . . . . Repair Station Hacks 2 | . . . . . 2 . Scan Component 1 | . . . . . 1 . Repair 1 | . . . . . 1 . Recycling Unit Hacks . | . . . . . . . Scanalyzer 3 | . . . . . 3 . Insert Component 1 | . . . . . 1 . Analyze 2 | . . . . . 2 . Garrison Access Hacks . | . . . . . . . Unauthorized Hacks . | . . . . . . . Terminals . | . . . . . . . Fabricators . | . . . . . . . Repair Stations . | . . . . . . . Recycling Units . | . . . . . . . Scanalyzers . | . . . . . . . Garrison Access . | . . . . . . . Data Cores Recovered 1 | . . . . . 1 . Used . | . . . . . . . Hacking Detections 9 | . 1 . . . 8 . Full Trace Events 1 | . . . . . 1 . Feedback Events . | . . . . . . . Feedback Blocked . | . . . . . . . Robot Schematics Acquired . | . . . . . . . Robots Built . | . . . . . . . Matter . | . . . . . . . Time . | . . . . . . . Total Robot Build Rating . | . . . . . . . Part Schematics Acquired 1 | . . . . . 1 . Parts Built . | . . . . . . . Matter . | . . . . . . . Time . | . . . . . . . Total Part Build Rating . | . . . . . . . Parts Repaired 1 | . . . . . 1 . Time 38 | . . . . . 38 . Parts Recycled . | . . . . . . . Recycled Matter . | . . . . . . . Retrieved Matter . | . . . . . . . Retrieved Components . | . . . . . . . Parts Scanalyzed 1 | . . . . . 1 . Part Schematics Acquired 1 | . . . . . 1 . Parts Damaged . | . . . . . . . Bothacking | -11 -10 -10 -10 -9 -8 -7 ------------ Run | Scr Mat Min Exi Min Mat Fac Used RIF Installer . | . . . . . . . Robots Hacked . | . . . . . . . Non-combat . | . . . . . . . Combat . | . . . . . . . Robot Hacks Applied . | . . . . . . . Relay Couplers Released . | . . . . . . . Robots Rewired . | . . . . . . . Allies Hacked . | . . . . . . . Hacks Repelled . | . . . . . . . Allies | -11 -10 -10 -10 -9 -8 -7 -------- Run | Scr Mat Min Exi Min Mat Fac Total Allies 5 | . . . . 5 . . Largest Group 5 | . . . . 5 5 . Highest-Rated Group 88 | . . . . 88 88 . Highest-Rated Ally 31 | . . . . 31 31 . Total Orders . | . . . . . . . Ally Attacks 46 | . . . . . 46 . Total Damage 497 | . . . . . 497 . Kills 5 | . . . . . 5 . Allies Corrupted . | . . . . . . . Allies Melted . | . . . . . . . Intel | -11 -10 -10 -10 -9 -8 -7 ------- Run | Scr Mat Min Exi Min Mat Fac Robot Analysis Total . | . . . . . . . Derelict Logs Recovered 2 | . . . . 2 . . Drone Launches . | . . . . . . . Drone Recoveries . | . . . . . . . Exploration | -11 -10 -10 -10 -9 -8 -7 ------------- Run | Scr Mat Min Exi Min Mat Fac Turns Passed 4322 | 60 799 277 818 554 1727 87 Spaces Moved 2428 | 39 369 139 373 416 1037 55 Core 540 | 18 . 48 373 101 . . Treads 1170 | 21 369 91 . . 634 55 Legs 358 | . . . . . 358 . Wheels 360 | . . . . 315 45 . Hover . | . . . . . . . Flight . | . . . . . . . Fastest Speed 50 | 50 160 160 200 80 90 153 Average Speed 156 | 127 160 173 217 121 146 153 Slowest Speed 250 | 160 160 200 250 250 180 153 Overloaded Moves . | . . . . . . . Propulsion Burnouts . | . . . . . . . Robots Hopped . | . . . . . . . Cave-ins Triggered 1 | . . . . . 1 . Exploration Rate (%) 47 | 3 55 26 82 94 69 2 Regions Visited 6 Branch Regions 3 Pre-discovered Areas . | . . . . . . . Known Exits Taken 3 | . . . 1 1 1 . Unknown Exits Taken 3 | 1 1 1 . . . . Scrap Searched 1 | . . 1 . . . . Spaces Dug 10 | . . . . . 10 . Terrain Destroyed 30 | . . . . . 30 . Melee 10 | . . . . . 10 . Projectile 20 | . . . . . 20 . AOE . | . . . . . . . Terrain Rammed . | . . . . . . . Walls Destroyed . | . . . . . . . Machines Disabled . | . . . . . . . Actions | -11 -10 -10 -10 -9 -8 -7 --------- Run | Scr Mat Min Exi Min Mat Fac Total 2795 | 47 482 154 385 460 1210 57 Wait 164 | . 47 . . 27 90 . Move 2422 | 38 368 138 372 415 1036 55 Hop . | . . . . . . . Pick Up 35 | 4 6 1 3 3 18 . Fast Attach 10 | 5 . . . . 5 . Attach 26 | . 4 1 4 5 10 2 Detach 3 | . . . . 2 1 . Swap 11 | . . . 1 . 10 . Drop 27 | . 3 . 5 1 18 . Fire 87 | . 54 14 . 7 12 . Melee 10 | . . . . . 10 . Ram . | . . . . . . . Kick . | . . . . . . . Crush . | . . . . . . . Escape Stasis . | . . . . . . . Rewire . | . . . . . . . Trap . | . . . . . . . Miscellaneous . | . . . . . . . Route ------- -11/Scrapyard -10/Materials (discovered 2 exits: [*Min x2]) -10/Mines -10/Exiles -9/Mines (discovered 2 exits: *Mat x2) -8/Materials -7/Factory History --------- Turn | Location | Event 23 | -11/Scrapyard | Discovered new exit (range 15) 61 | -11/Scrapyard | Entered Materials 310 | -10/Materials | Build established: Mutant 463 | -10/Materials | Discovered new exit (range 12) 704 | -10/Materials | Discovered new exit (range 11) 860 | -10/Materials | Entered Mines 861 | -10/Mines | Assembled infested the area 1127 | -10/Mines | Deemed a non-threat by the Exiles lab entrance 1129 | -10/Mines | Discovered new exit (range 5) 1137 | -10/Mines | Entered Exiles 1187 | -10/Exiles | Met 8R-AWN 1237 | -10/Exiles | Met EX-HEX 1386 | -10/Exiles | Visited The Gauntlet 1463 | -10/Exiles | Met EX-DEC 1527 | -10/Exiles | Met EX-BIN 1555 | -10/Exiles | Aligned with FarCom system 1557 | -10/Exiles | Given EX-Vault access code 1603 | -10/Exiles | Opened EX-Vault 1613 | -10/Exiles | Found Prototype Processor 1614 | -10/Exiles | Identified 0b10 Alert Chip 1622 | -10/Exiles | Found Prototype Energy Cannon 1634 | -10/Exiles | Identified Firepult 1635 | -10/Exiles | Found Prototype Energy Gun 1636 | -10/Exiles | Identified AWS/Thermal 1690 | -10/Exiles | Warned to stay clear of 0b10 Research branches 1923 | -10/Exiles | Discovered new exit (range 14) 1953 | -10/Exiles | Identified exit to Mines 1955 | -10/Exiles | Stole two prototypes: 0b10 Alert Chip, AWS/Thermal 1955 | -10/Exiles | Entered Mines 1958 | -9/Mines | Assisted by bots powering up and referring to "LRC-V3" 2274 | -9/Mines | Learned Materials emergency access door positions 2340 | -9/Mines | Discovered new exit (range 10) 2346 | -9/Mines | Identified exit to Materials 2422 | -9/Mines | Discovered exit to Materials (range 10) 2465 | -9/Mines | Found the Drone Emporium 2470 | -9/Mines | Found Prototype Device 2471 | -9/Mines | Identified Sensor Drone Bay 2509 | -9/Mines | Entered Materials 2509 | -8/Materials | Accompanied by 5 allies 2509 | -8/Materials | Evolved 4 slots: Utility x1, Weapon x3 2510 | -8/Materials | Identified exit to Factory 2514 | -8/Materials | Led the pair of lost Derelicts to an unsafe place 2772 | -8/Materials | Crushed by falling debris 3193 | -8/Materials | Repaired Carbon-fiber Leg 3473 | -8/Materials | Build established: Skirmisher 4236 | -8/Materials | Entered Factory 4236 | -7/Factory | Evolved 2 slots: Propulsion x1, Utility x1 4238 | -7/Factory | FarCom data flow suspended 4323 | -7/Factory | Self-destructed Last Messages --------------- 2x Proton Bomb Trap Map updated. >>Layout(Zone) Retrieving Zone 5Q layout... Downloaded map data. Acquired 30 matter. U-05 Engineer destroyed. S-10 Pest destroyed. System corrupted: Component data lost. S-10 Pest destroyed. R-06 Scavenger collects Terrain Scan Processor. Acquired 8 matter. PARAMETERS=PROPULSION_1,UTILITY_1 LOCATION=FACTORY GOAL=ESCAPE Receiving FarCom transmissions... FARCOM_MSG: Not cool, anonymous tester bot. We've taken inventory and discovered your thievery. Let's see how you like having parts stolen! FarCom data flow suspended. K-01 Serf collects debris. Map ----- +----------------------------------------------------+ | ???????????????????????????????????????????? | | ???????????????????????????????????????????? | | ???????????????????????????????????????????? | | ???????????????????????????????????????????? | | ???????????????????????????????????????????? | | ????????????#########+###### ?????????????? | | ????????????? ?????????????? | | ?????????????? ??????????????? | | ??????????????? ???????????????? | | ???????????????? ????????????????? | | ????????????????? ?????????????????? | | ??????############# #??????????????????? | | ??????# = # #??????????????????? | | ??????# [# #??????????????????? | | ??????# # #??????????????????? | | ??????# """" """" # #??????????????????? | | ??????# """" """" + #??????????????????? | | ??????# """" """" # ########???????????? | | ??????# """" """" # # ! """???????????? | | ??????# # # ""S""??????????? | | ??????# """" """" # # "" ""??????????? | | ??????# """" """" # # ??????????? | | ??????# """" """" # # """"" #????????? | | ??????# """" """" # + """"" #????????? | | ??????# # # """ #????????? | | ??????########+#### #@ #????????? | | ############## #### ##+#+######????????? | | ?????????????? | | ?????????????? | | ?????????????? | | ?????????????? | | ?????????????? | | #+############ #### #####??????????????? | | ?????????????# #??# #??????????????????? | | ?????????????# #??# #??????????????????? | | ?????????????# #??# #??????????????????? | | ?????????#####+#### #??????????????????? | | ?????????# [ + +??????????????????? | | ?????????# # #??????????????????? | | ?????????#"" # #??????????????????? | | ?????????#"" # #??????????????????? | | ?????????#""" #######??????????????????? | | ?????????#""" #????????????????????????? | | ?????????#""" #????????????????????????? | | ?????????# #????????????????????????? | | ?????????# #????????????????????????? | | ?????????##########????????????????????????? | | ???????????????????????????????????????????? | | ???????????????????????????????????????????? | | ???????????????????????????????????????????? | +----------------------------------------------------+ Best States ------------- Heat Dissipation 34 Energy Generation 14 Energy Capacity 250 Matter Stores 300 Matter Capacity 300 Sight Range 20 Terrain Scan Density 10 Jamming Range 14 Base Temperature (-) 100 Evasion (%) 50 Recoil Reduction 3 Particle Charging 15 Item Schematics ----------------- Adv. Treads | -8/Materials | Scanalyzed Robot Schematics ------------------ None Fabricated ------------ Nothing Alien Tech Used ----------------- None Achievements -------------- Part-time Excavator The More The Merrier Challenges ------------ None Game ------ Seed DisposableMicroInterrupter Manual? 0 Play Time 00:40:13 Cumulative 21.2 hours Start 2021.12.01 @ 08:35:41 End 2021.12.01 @ 09:16:01 Sessions 1 Manual Loads 0 Difficulty Rogue Special Mode None Game No. 30 Rogue 29 Adventurer 1 Explorer 0 Win Type - Total 0 Types 0/0/0/0/0/0/0/0/0 Lore% 20 Gallery% 19 Achievement% 22 Wizard Run 0 Options --------- ASCII 0 Keyboard 0 Movement Mouse Keybinds 0 Fullscreen 1 Font 18/SmallcapsGlow Map View 76x50 Tactical HUD 0 Map Filters NONE Filters NONE Steam 1 RUN: b53c7e84-288d-4b4f-8162-b68fd51a6e9b